fUST/lending_fUST_20240112
["ID","MTS","AMOUNT","RATE_DAILY","PERIOD"]
[311260554,1705000241104,-501.07299609,0.00030136,2]
[311260556,1705000241114,-504.99644365,0.00030136,30]
[311260558,1705000241123,-500.0,0.00030136,2]
[311260560,1705000241132,-637.11585041,0.00030136,2]
[311260562,1705000241141,-501.67385778,0.00030136,2]
[311260564,1705000241151,-509.94278174,0.00030136,2]
[311260566,1705000241160,-522.97859531,0.00030136,2]
[311260567,1705000241169,-594.76805938,0.00030136,2]
[311260569,1705000241180,-500.0,0.00030136,2]
[311260571,1705000241189,-500.0,0.00030136,2]
[311260573,1705000241199,-500.0,0.00030136,2]
[311260575,1705000241208,-500.0,0.00030136,2]
[311260577,1705000241217,-500.0,0.00030136,2]
[311260579,1705000241227,-500.0,0.00030136,2]
[311260581,1705000241235,-500.0,0.00030136,2]
[311260583,1705000241244,-475.76600609,0.00030136,2]
[311260585,1705000241253,-436.7156274,0.00030136,2]
[311260587,1705000241263,-1000.0,0.00030136,2]
[311260589,1705000241272,-500.0,0.00030136,2]
[311260591,1705000241281,-500.0,0.00030136,2]
[311260593,1705000241290,-500.0,0.00030136,2]
[311260595,1705000241299,-500.0,0.00030136,2]
[311260597,1705000241308,-500.0,0.00030136,2]
[311260599,1705000241317,-500.0,0.00030136,2]
[311260601,1705000241326,-500.0,0.00030136,2]
[311260603,1705000241335,-500.0,0.00030136,2]
[311260605,1705000241344,-500.0,0.00030136,2]
[311260607,1705000241353,-500.0,0.00030136,2]
[311260609,1705000241363,-500.0,0.00030136,2]
[311260611,1705000241372,-500.0,0.00030136,2]
[311260613,1705000241381,-500.0,0.00030136,2]
[311260615,1705000241390,-502.0635084,0.00030136,2]
[311260617,1705000241399,-500.0,0.00030136,2]
[311260619,1705000241407,-500.0,0.00030136,2]
[311260621,1705000241416,-500.0,0.00030136,2]
[311260623,1705000241425,-170.19796657,0.00030136,2]
[311260625,1705000241435,-642.73342,0.00030136,2]
[311260627,1705000241444,-500.0,0.00030136,2]
[311260629,1705000241454,-270.6920062,0.00030136,2]
[311260631,1705000241463,-503.69799777,0.00030136,2]
[311260633,1705000241471,-500.0,0.00030136,2]
[311260635,1705000241480,-500.0,0.00030136,2]
[311260637,1705000241489,-277.54315261,0.00030136,2]
[311260639,1705000241499,-500.0,0.00030136,2]
[311260641,1705000241508,-501.48834983,0.00030136,2]
[311260643,1705000241517,-500.0,0.00030136,2]
[311260645,1705000241526,-500.0,0.00030136,2]
[311260647,1705000241535,-500.0,0.00030136,2]
[311260650,1705000241544,-500.0,0.00030136,2]
[311260653,1705000241553,-511.70322812,0.00030136,2]
[311260656,1705000241562,-501.82843532,0.00030136,2]
[311260659,1705000241572,-500.0,0.00030136,2]
[311260662,1705000241581,-500.0,0.00030136,2]
[311260665,1705000241590,-500.0,0.00030136,2]
[311260668,1705000241599,-501.28748838,0.00030136,2]
[311260671,1705000241608,-322.61788866,0.00030136,2]
[311260674,1705000241617,-500.0,0.00030136,2]
[311260676,1705000241626,-502.53708543,0.00030136,2]
[311260678,1705000241635,-500.0,0.00030136,2]
[311260680,1705000241644,-500.0,0.00030136,2]
[311260682,1705000241654,-500.0,0.00030136,2]
[311260684,1705000241663,-500.0,0.00030136,2]
[311260686,1705000241672,-500.0,0.00030136,2]
[311260688,1705000241682,-500.0,0.00030136,2]
[311260690,1705000241691,-500.0,0.00030136,2]
[311260692,1705000241700,-500.0,0.00030136,2]
[311260694,1705000241709,-500.0,0.00030136,2]
[311260696,1705000241718,-500.0,0.00030136,2]
[311260698,1705000241727,-500.0,0.00030136,2]
[311260700,1705000241736,-500.0,0.00030136,2]
[311260702,1705000241744,-500.0,0.00030136,2]
[311260704,1705000241754,-500.0,0.00030136,2]
[311260706,1705000241763,-500.0,0.00030136,2]
[311260708,1705000241771,-500.0,0.00030136,2]
[311260710,1705000241780,-500.0,0.00030136,2]
[311260712,1705000241789,-500.0,0.00030136,2]
[311260714,1705000241798,-687.39,0.00030136,2]
[311260716,1705000241807,-500.0,0.00030136,2]
[311260718,1705000241816,-500.0,0.00030136,2]
[311260720,1705000241825,-503.08297517,0.00030136,2]
[311260722,1705000241833,-500.0,0.00030136,2]
[311260724,1705000241842,-345.71155924,0.00030136,2]
[311260726,1705000241852,-500.0,0.00030136,2]
[311260727,1705000241861,-500.0,0.00030136,2]
[311260729,1705000241871,-500.0,0.00030136,2]
[311260731,1705000241881,-500.0,0.00030136,2]
[311260733,1705000241891,-500.0,0.00030136,2]
[311260735,1705000241900,-226.98517404,0.00030136,2]
[311260737,1705000241910,-500.0,0.00030136,2]
[311260739,1705000241919,-500.0,0.00030136,2]
[311260741,1705000241931,-500.20971053,0.00030136,2]
[311260743,1705000241942,-500.0,0.00030136,2]
[311260745,1705000241953,-500.0,0.00030136,2]
[311260748,1705000241963,-500.0,0.00030136,2]
[311260750,1705000241974,-500.0,0.00030136,2]
[311260751,1705000241985,-500.0,0.00030136,2]
[311260754,1705000241996,-500.0,0.00030136,2]
[311260755,1705000242005,-500.0,0.00030136,2]
[311260757,1705000242016,-500.0,0.00030136,2]
[311260759,1705000242024,-211.36391079,0.00030136,2]
[311260761,1705000242034,-500.0,0.00030136,2]
[311260763,1705000242042,-500.0,0.00030136,2]
[311260765,1705000242051,-500.0,0.00030136,2]
[311260767,1705000242060,-500.0,0.00030136,2]
[311260769,1705000242069,-500.0,0.00030136,2]
[311260771,1705000242078,-500.0,0.00030136,2]
[311260773,1705000242087,-500.0,0.00030136,2]
[311260775,1705000242097,-500.0,0.00030136,2]
[311260777,1705000242105,-500.0,0.00030136,2]
[311260779,1705000242115,-500.0,0.00030136,2]
[311260781,1705000242125,-781.02905726,0.00030136,5]
[311260783,1705000242134,-500.0,0.00030136,2]
[311260785,1705000242143,-500.0,0.00030136,2]
[311260787,1705000242153,-500.0,0.00030136,2]
[311260789,1705000242162,-500.0,0.00030136,2]
[311260791,1705000242171,-500.0,0.00030136,2]
[311260793,1705000242182,-1172.88,0.00030136,2]
[311260795,1705000242191,-500.0,0.00030136,2]
[311260796,1705000242200,-500.0,0.00030136,2]
[311260798,1705000242209,-500.0,0.00030136,2]
[311260800,1705000242218,-500.0,0.00030136,2]
[311260802,1705000242227,-508.57057146,0.00030136,2]
[311260804,1705000242236,-500.0,0.00030136,2]
[311260805,1705000242246,-500.0,0.00030136,2]
[311260807,1705000242255,-500.0,0.00030136,2]
[311260809,1705000242264,-500.0,0.00030136,2]
[311260811,1705000242273,-200.0,0.00030136,2]
[311260813,1705000242282,-500.0,0.00030136,2]
[311260815,1705000242291,-500.0,0.00030136,2]
[311260817,1705000242300,-500.0,0.00030136,2]
[311260819,1705000242309,-500.0,0.00030136,2]
[311260821,1705000242318,-500.0,0.00030136,2]
[311260823,1705000242330,-500.0,0.00030136,2]
[311260825,1705000242339,-225.87099317,0.00030136,2]
[311260827,1705000242348,-503.63059754,0.00030136,2]
[311260829,1705000242357,-506.61528026,0.00030136,2]
[311260831,1705000242366,-500.0,0.00030136,2]
[311260833,1705000242374,-409.68093324,0.00030136,2]
[311260835,1705000242384,-500.0,0.00030136,2]
[311260837,1705000242394,-500.0,0.00030136,2]
[311260839,1705000242404,-500.0,0.00030136,2]
[311260841,1705000242413,-500.0,0.00030136,2]
[311260842,1705000242422,-500.0,0.00030136,2]
[311260844,1705000242433,-500.0,0.00030136,2]
[311260846,1705000242444,-500.0,0.00030136,2]
[311260848,1705000242453,-500.0,0.00030136,2]
[311260850,1705000242462,-500.0,0.00030136,2]
[311260852,1705000242471,-500.0,0.00030136,2]
[311260854,1705000242480,-601.14420267,0.00030136,2]
[311260856,1705000242490,-500.0,0.00030136,2]
[311260858,1705000242499,-500.0,0.00030136,2]
[311260860,1705000242508,-500.0,0.00030136,2]
[311260862,1705000242517,-500.0,0.00030136,2]
[311260864,1705000242526,-500.0,0.00030136,2]
[311260866,1705000242535,-500.0,0.00030136,2]
[311260868,1705000242544,-500.0,0.00030136,2]
[311260870,1705000242553,-503.53888354,0.00030136,2]
[311260872,1705000242562,-500.0,0.00030136,2]
[311260874,1705000242571,-500.0,0.00030136,2]
[311260876,1705000242580,-529.02,0.00030136,2]
[311260878,1705000242589,-500.0,0.00030136,2]
[311260880,1705000242598,-500.0,0.00030136,2]
[311260882,1705000242607,-14408.67,0.00030136,2]
[311260884,1705000242616,-500.0,0.00030136,2]
[311260886,1705000242624,-500.0,0.00030136,2]
[311260888,1705000242633,-500.0,0.00030136,2]
[311260890,1705000242642,-356.88042739,0.00030136,2]
[311260891,1705000242652,-500.0,0.00030136,2]
[311260892,1705000242660,-500.0,0.00030136,2]
[311260893,1705000242669,-500.0,0.00030136,2]
[311260894,1705000242680,-514.73,0.00030136,2]
[311260895,1705000242689,-500.0,0.00030136,2]
[311260896,1705000242698,-500.0,0.00030136,2]
[311260897,1705000242706,-506.6343606,0.00030136,2]
[311260898,1705000242715,-2180.02,0.00030136,2]
[311260899,1705000242724,-3546.03,0.00030136,2]
[311260900,1705000242733,-994.82,0.00030136,2]
[311260901,1705000242742,-500.0,0.00030136,2]
[311260902,1705000242755,-1552.4,0.00030136,2]
[311260903,1705000242764,-500.0,0.00030136,2]
[311260904,1705000242773,-7430.77,0.00030136,2]
[311260905,1705000242783,-500.0,0.00030136,2]
[311260906,1705000242791,-500.0,0.00030136,2]
[311260907,1705000242801,-889.72,0.00030136,2]
[311260908,1705000242810,-500.0,0.00030136,2]
[311260909,1705000242818,-500.0,0.00030136,2]
[311260910,1705000242827,-500.0,0.00030136,2]
[311260912,1705000242836,-672.93,0.00030136,2]
[311260913,1705000242845,-500.0,0.00030136,2]
[311260915,1705000242854,-547.8,0.00030136,2]
[311260917,1705000242863,-500.0,0.00030136,2]
[311260919,1705000242872,-510.27,0.00030136,2]
[311260922,1705000242882,-651.18,0.00030136,2]
[311260925,1705000242891,-1490.73,0.00030136,2]
[311260928,1705000242900,-500.0,0.00030136,2]
[311260930,1705000242909,-616.87,0.00030136,2]
[311260932,1705000242918,-507.08441608,0.00030136,2]
[311260934,1705000242927,-562.91,0.00030136,2]
[311260937,1705000242937,-500.0,0.00030136,2]
[311260940,1705000242946,-1256.39,0.00030136,2]
[311260943,1705000242956,-510.97783528,0.00030136,2]
[311260946,1705000242965,-500.0,0.00030136,2]
[311260948,1705000242974,-2183.17,0.00030136,2]
[311260951,1705000242984,-153.0,0.00030137,2]
[311260955,1705000242993,-488.99507666,0.000302,3]
[311260958,1705000243002,-159.41039242,0.0003021,7]
[311260961,1705000243012,-164.93506729,0.0003031,2]
[311260963,1705000243021,-38379.93475574,0.0003031,3]
[311260965,1705000243030,-151.0,0.0003031,2]
[311260967,1705000243039,-335.882936,0.0003031,2]
[311260969,1705000243048,-335.882936,0.0003031,2]
[311260971,1705000243058,-1670.335047,0.0003031,2]
[311260973,1705000243067,-1670.335047,0.0003031,2]
[311260975,1705000243076,-152.31739518,0.00030343,7]
[311260978,1705000243087,-500.0,0.00030409,2]
[311260980,1705000243095,-500.0,0.00030409,2]
[311260982,1705000243105,-303.867608,0.0003041,2]
[311260983,1705000243114,-187.751045,0.0003041,2]
[311260985,1705000243123,-157.19971,0.0003041,2]
[311260988,1705000243133,-201.220704,0.0003041,2]
[311260990,1705000243143,-360.83325,0.0003041,2]
[311260991,1705000243152,-242.828739,0.0003041,2]
[311260994,1705000243162,-500.0,0.0003041,2]
[311260995,1705000243171,-538.7,0.0003041,2]
[311260998,1705000243183,-674.76,0.0003041,2]
[311261000,1705000243192,-500.0,0.0003041,2]
[311261001,1705000243201,-834.41243494,0.0003041,2]
[311261003,1705000243210,-279.26281635,0.0003041,2]
[311261005,1705000243220,-548.77,0.0003041,2]
[311261007,1705000243229,-216.46883088,0.0003041,2]
[311261009,1705000243239,-500.0,0.0003041,2]
[311261011,1705000243248,-500.0,0.0003041,2]
[311261013,1705000243259,-687.39,0.0003041,2]
[311261015,1705000243268,-500.0,0.0003041,2]
[311261027,1705000243277,-306.89,0.0003041,2]
[311261030,1705000243380,-500.0,0.0003041,2]
[311261032,1705000243389,-500.0,0.0003041,2]
[311261034,1705000243399,-500.0,0.0003041,2]
[311261036,1705000243408,-1172.88,0.0003041,2]
[311261037,1705000243417,-500.0,0.0003041,2]
[311261040,1705000243426,-205.83409689,0.0003041,2]
[311261041,1705000243438,-500.0,0.0003041,2]
[311261044,1705000243448,-438.76690528,0.0003041,2]
[311261045,1705000243457,-500.0,0.0003041,2]
[311261048,1705000243466,-500.0,0.0003041,2]
[311261049,1705000243476,-500.0,0.0003041,2]
[311261052,1705000243486,-500.0,0.0003041,2]
[311261054,1705000243495,-500.0,0.0003041,2]
[311261055,1705000243504,-529.02,0.0003041,2]
[311261057,1705000243513,-507.79952891,0.0003041,2]
[311261061,1705000243522,-14408.67,0.0003041,2]
[311261064,1705000243532,-500.0,0.0003041,2]
[311261067,1705000243541,-500.0,0.0003041,2]
[311261070,1705000243551,-641.80549609,0.0003041,2]
[311261073,1705000243560,-514.73,0.0003041,2]
[311261075,1705000243569,-500.0,0.0003041,2]
[311261077,1705000243578,-2180.02,0.0003041,2]
[311261079,1705000243587,-3546.03,0.0003041,2]
[311261081,1705000243596,-994.82,0.0003041,2]
[311261083,1705000243605,-500.0,0.0003041,2]
[311261085,1705000243615,-1552.4,0.0003041,2]
[311261088,1705000243624,-7430.77,0.0003041,2]
[311261090,1705000243633,-579.8252146,0.0003041,2]
[311261091,1705000243642,-500.0,0.0003041,2]
[311261093,1705000243651,-889.72,0.0003041,2]
[311261095,1705000243661,-232.55111071,0.0003041,2]
[311261098,1705000243671,-500.0,0.0003041,2]
[311261100,1705000243681,-500.0,0.0003041,2]
[311261101,1705000243691,-547.8,0.0003041,2]
[311261103,1705000243700,-672.93,0.0003041,2]
[311261105,1705000243709,-500.0,0.0003041,2]
[311261107,1705000243718,-510.27,0.0003041,2]
[311261108,1705000243727,-651.18,0.0003041,2]
[311261110,1705000243737,-1490.73,0.0003041,2]
[311261111,1705000243747,-616.87,0.0003041,2]
[311261112,1705000243756,-562.91,0.0003041,2]
[311261113,1705000243765,-1256.39,0.0003041,2]
[311261114,1705000243774,-500.0,0.0003041,2]
[311261116,1705000243783,-2183.17,0.0003041,2]
[311261117,1705000243791,-555.08926449,0.00030413,5]
[311261119,1705000243801,-152.31739518,0.00030483,7]
[311261121,1705000243810,-151.0,0.000305,7]
[311261122,1705000243819,-155.0,0.000305,2]
[311261123,1705000243829,-159.41039242,0.00030506,7]
[311261125,1705000243838,-222.8,0.00030593,2]
[311261127,1705000243846,-2844.0,0.0003066,30]
[311261129,1705000243855,-448.0,0.0003066,30]
[311261130,1705000243864,-192.0,0.0003066,30]
[311261132,1705000243873,-330.0,0.0003066,7]
[311261134,1705000243883,-8910.0,0.0003066,30]
[311261135,1705000243892,-500.0,0.00030669,2]
[311261137,1705000243901,-2844.0,0.0003067,30]
[311261138,1705000243910,-448.0,0.0003067,30]
[311261140,1705000243919,-192.0,0.0003067,30]
[311261142,1705000243928,-330.0,0.0003067,7]
[311261143,1705000243937,-8910.0,0.0003067,30]
[311261145,1705000243946,-2844.0,0.0003068,30]
[311261147,1705000243955,-448.0,0.0003068,30]
[311261148,1705000243964,-192.0,0.0003068,30]
[311261149,1705000243974,-330.0,0.0003068,7]
[311261150,1705000243982,-8910.0,0.0003068,30]
[311261151,1705000243991,-283.32190284,0.00030683,4]
[311261153,1705000244001,-500.0,0.00030683,2]
[311261155,1705000244010,-500.0,0.00030684,2]
[311261157,1705000244019,-674.76,0.00030684,2]
[311261159,1705000244028,-500.0,0.00030684,2]
[311261161,1705000244037,-548.77,0.00030684,2]
[311261163,1705000244046,-500.0,0.00030684,2]
[311261165,1705000244055,-500.0,0.00030684,2]
[311261167,1705000244064,-687.39,0.00030684,2]
[311261169,1705000244073,-500.0,0.00030684,2]
[311261171,1705000244083,-500.0,0.00030684,2]
[311261173,1705000244092,-500.0,0.00030684,2]
[311261175,1705000244101,-1172.88,0.00030684,2]
[311261177,1705000244110,-500.0,0.00030684,2]
[311261179,1705000244119,-500.0,0.00030684,2]
[311261181,1705000244128,-500.0,0.00030684,2]
[311261183,1705000244137,-529.02,0.00030684,2]
[311261185,1705000244146,-14408.67,0.00030684,2]
[311261187,1705000244155,-563.46,0.00030684,2]
[311261189,1705000244164,-500.0,0.00030684,2]
[311261191,1705000244173,-514.73,0.00030684,2]
[311261193,1705000244184,-500.0,0.00030684,2]
[311261195,1705000244193,-2180.02,0.00030684,2]
[311261197,1705000244202,-3546.03,0.00030684,2]
[311261199,1705000244211,-994.82,0.00030684,2]
[311261201,1705000244220,-500.0,0.00030684,2]
[311261203,1705000244230,-1552.4,0.00030684,2]
[311261205,1705000244239,-7430.77,0.00030684,2]
[311261207,1705000244248,-500.0,0.00030684,2]
[311261209,1705000244257,-889.72,0.00030684,2]
[311261211,1705000244266,-500.0,0.00030684,2]
[311261213,1705000244275,-500.0,0.00030684,2]
[311261215,1705000244284,-547.8,0.00030684,2]
[311261217,1705000244293,-672.93,0.00030684,2]
[311261219,1705000244302,-500.0,0.00030684,2]
[311261221,1705000244311,-510.27,0.00030684,2]
[311261223,1705000244320,-651.18,0.00030684,2]
[311261225,1705000244329,-1490.73,0.00030684,2]
[311261227,1705000244339,-616.87,0.00030684,2]
[311261229,1705000244354,-562.91,0.00030684,2]
[311261231,1705000244362,-1256.39,0.00030684,2]
[311261233,1705000244371,-425.46131235,0.00030684,2]
[311261235,1705000244380,-2183.17,0.00030684,2]
[311261237,1705000244390,-335.882936,0.00030689,2]
[311261239,1705000244399,-335.882936,0.00030689,2]
[311261241,1705000244409,-1670.335047,0.00030689,2]
[311261243,1705000244417,-1670.335047,0.00030689,2]
[311261245,1705000244426,-555.08926449,0.0003073,5]
[311261247,1705000244438,-303.867608,0.00030776,2]
[311261249,1705000244447,-187.751045,0.00030776,2]
[311261251,1705000244465,-157.19971,0.00030776,2]
[311261253,1705000244474,-201.220704,0.00030776,2]
[311261255,1705000244483,-360.83325,0.00030776,2]
[311261257,1705000244492,-242.828739,0.00030776,2]
[311261259,1705000244501,-167.847804,0.00030776,2]
[311261260,1705000244510,-188.126477,0.00030776,2]
[311261262,1705000244519,-500.0,0.0003078,120]
[311261264,1705000244528,-465.35,0.0003078,120]
[311261266,1705000244537,-500.0,0.0003078,120]
[311261269,1705000244546,-500.0,0.0003078,120]
[311261270,1705000244555,-500.0,0.0003078,120]
[311261271,1705000244564,-500.0,0.0003078,120]
[311261272,1705000244573,-500.0,0.0003078,120]
[311261273,1705000244583,-596.77,0.0003078,120]
[311261274,1705000244592,-500.0,0.0003078,120]
[311261275,1705000244601,-151.0,0.0003078,2]
[311261276,1705000244610,-500.0,0.00030799,2]
[311261277,1705000244619,-2785.9795547,0.000308,2]
[311261278,1705000244628,-620.00004909,0.00030838,2]
[311261279,1705000244637,-2000.0,0.000309,2]
[311261280,1705000244646,-1500.0,0.000309,2]
[311261281,1705000244655,-2000.0,0.0003091,2]
[311261282,1705000244665,-2000.0,0.0003092,2]
[311261283,1705000244674,-2000.0,0.0003093,2]
[311261284,1705000244683,-2000.0,0.0003094,2]
[311261285,1705000244693,-2000.0,0.0003095,2]
[311261286,1705000244703,-1041.55,0.00030956,4]
[311261287,1705000244712,-296.02443686,0.00030956,4]
[311261288,1705000244722,-1431.14134298,0.00030957,4]
[311261289,1705000244731,-391.52414477,0.00030957,2]
[311261290,1705000244741,-249.40717471,0.00030957,2]
[311261291,1705000244750,-1000.0,0.00030957,7]
[311261292,1705000244759,-492.07374104,0.00030957,2]
[311261293,1705000244768,-500.0,0.00030958,2]
[311261294,1705000244778,-674.76,0.00030958,2]
[311261295,1705000244787,-500.0,0.00030958,2]
[311261296,1705000244796,-548.77,0.00030958,2]
[311261297,1705000244805,-500.0,0.00030958,2]
[311261298,1705000244815,-500.0,0.00030958,2]
[311261299,1705000244825,-687.39,0.00030958,2]
[311261300,1705000244834,-500.0,0.00030958,2]
[311261301,1705000244844,-500.0,0.00030958,2]
[311261302,1705000244853,-500.0,0.00030958,2]
[311261303,1705000244862,-1172.88,0.00030958,2]
[311261304,1705000244871,-500.0,0.00030958,2]
[311261305,1705000244879,-500.0,0.00030958,2]
[311261306,1705000244888,-500.0,0.00030958,2]
[311261307,1705000244898,-529.02,0.00030958,2]
[311261309,1705000244907,-14408.67,0.00030958,2]
[311261310,1705000244916,-500.0,0.00030958,2]
[311261312,1705000244925,-514.73,0.00030958,2]
[311261314,1705000244935,-500.0,0.00030958,2]
[311261315,1705000244946,-2180.02,0.00030958,2]
[311261316,1705000244955,-3546.03,0.00030958,2]
[311261317,1705000244963,-994.82,0.00030958,2]
[311261318,1705000244972,-500.0,0.00030958,2]
[311261319,1705000244981,-1552.4,0.00030958,2]
[311261320,1705000244990,-7430.77,0.00030958,2]
[311261321,1705000244999,-500.0,0.00030958,2]
[311261322,1705000245008,-889.72,0.00030958,2]
[311261323,1705000245017,-500.0,0.00030958,2]
[311261324,1705000245027,-500.0,0.00030958,2]
[311261325,1705000245036,-547.8,0.00030958,2]
[311261326,1705000245045,-672.93,0.00030958,2]
[311261327,1705000245055,-500.0,0.00030958,2]
[311261328,1705000245063,-510.27,0.00030958,2]
[311261329,1705000245072,-651.18,0.00030958,2]
[311261330,1705000245082,-1490.73,0.00030958,2]
[311261331,1705000245091,-616.87,0.00030958,2]
[311261332,1705000245100,-562.91,0.00030958,2]
[311261334,1705000245110,-1256.39,0.00030958,2]
[311261336,1705000245119,-2183.17,0.00030958,2]
[311261337,1705000245128,-2000.0,0.0003096,2]
[311261339,1705000245137,-2000.0,0.0003097,2]
[311261340,1705000245146,-159.41039242,0.00030971,7]
[311261341,1705000245155,-159.41039242,0.00030975,7]
[311261342,1705000245165,-2000.0,0.0003098,2]
[311261344,1705000245174,-2000.0,0.0003099,2]
[311261346,1705000245185,-568.14998178,0.00030995,4]
[311261348,1705000245194,-155.93685466,0.00030995,4]
[311261350,1705000245203,-266.19065175,0.00030997,4]
[311261352,1705000245213,-1049.82427488,0.00030997,7]
[311261353,1705000245223,-1000.0,0.00031,31]
[311261355,1705000245232,-8620.00657896,0.00031,4]
[311261358,1705000245242,-2000.0,0.00031,2]
[311261360,1705000245251,-2000.0,0.0003101,2]
[311261361,1705000245261,-2332.039716,0.0003102,2]
[311261363,1705000245270,-555.08926449,0.00031046,5]
[311261365,1705000245279,-159.41039242,0.0003105,7]
[311261367,1705000245289,-3849.0,0.000311,10]
[311261369,1705000245298,-151.0,0.00031108,2]
[311261372,1705000245307,-1390.9998,0.00031197,23]
[311261373,1705000245316,-5000.0,0.00031206,7]
[311261375,1705000245325,-5000.0,0.00031206,7]
[311261377,1705000245335,-500.0,0.00031232,2]
[311261379,1705000245344,-674.76,0.00031232,2]
[311261381,1705000245353,-500.0,0.00031232,2]
[311261383,1705000245363,-548.77,0.00031232,2]
[311261385,1705000245372,-500.0,0.00031232,2]
[311261387,1705000245382,-500.0,0.00031232,2]
[311261389,1705000245392,-687.39,0.00031232,2]
[311261391,1705000245402,-500.0,0.00031232,2]
[311261393,1705000245412,-500.0,0.00031232,2]
[311261395,1705000245421,-500.0,0.00031232,2]
[311261397,1705000245432,-1172.88,0.00031232,2]
[311261399,1705000245441,-500.0,0.00031232,2]
[311261400,1705000245450,-500.0,0.00031232,2]
[311261401,1705000245459,-500.0,0.00031232,2]
[311261402,1705000245468,-529.02,0.00031232,2]
[311261403,1705000245476,-14408.67,0.00031232,2]
[311261404,1705000245486,-500.0,0.00031232,2]
[311261405,1705000245495,-514.73,0.00031232,2]
[311261406,1705000245504,-500.0,0.00031232,2]
[311261407,1705000245513,-2180.02,0.00031232,2]
[311261408,1705000245522,-3546.03,0.00031232,2]
[311261409,1705000245531,-994.82,0.00031232,2]
[311261410,1705000245541,-500.0,0.00031232,2]
[311261411,1705000245550,-1552.4,0.00031232,2]
[311261412,1705000245559,-7430.77,0.00031232,2]
[311261413,1705000245568,-500.0,0.00031232,2]
[311261414,1705000245578,-889.72,0.00031232,2]
[311261415,1705000245586,-442.97047712,0.00031232,2]
[311261416,1705000245596,-498.0,0.00031232,2]
[311261417,1705000245605,-547.8,0.00031232,2]
[311261418,1705000245614,-672.93,0.00031232,2]
[311261419,1705000245623,-500.0,0.00031232,2]
[311261420,1705000245632,-510.27,0.00031232,2]
[311261421,1705000245642,-651.18,0.00031232,2]
[311261422,1705000245651,-1490.73,0.00031232,2]
[311261423,1705000245661,-616.87,0.00031232,2]
[311261424,1705000245670,-562.91,0.00031232,2]
[311261425,1705000245680,-1256.39,0.00031232,2]
[311261426,1705000245689,-2183.17,0.00031232,2]
[311261427,1705000245698,-151.0,0.00031232,2]
[311261428,1705000245707,-335.882936,0.00031232,2]
[311261429,1705000245716,-335.882936,0.00031232,2]
[311261430,1705000245725,-1670.335047,0.00031232,2]
[311261431,1705000245816,-159.41039242,0.00031313,7]
[311261432,1705000245825,-555.08926449,0.00031363,5]
[311261433,1705000245835,-8088.26925045,0.00031435,2]
[311261434,1705000245844,-2081.3272264,0.000315,4]
[311261435,1705000245853,-156.27138332,0.000315,4]
[311261436,1705000245863,-479.0863962,0.000315,10]
[311261437,1705000245872,-12509.05639231,0.000315,7]
[311261438,1705000245881,-165.41976585,0.000315,4]
[311261439,1705000245890,-156.20158753,0.000315,2]
[311261440,1705000245899,-155.11478319,0.00031504,4]
[311261441,1705000245909,-331.94751479,0.00031506,2]
[311261442,1705000245918,-674.76,0.00031506,2]